[Event "Early-Titled-Tuesday-Blitz-May-28-2024"]
[Site "Chess.com"]
[Date "2024.05.28"]
[Round "2"]
[White "SmirnovAlexandrA"]
[Black "Grischuk"]
[Result "0-1"]
[WhiteElo "2644"]
[BlackElo "3114"]
[TimeControl "180+1"]
[EndTime "8:19:45 PDT"]
[Termination "Grischuk won by resignation"]

1. e4 {[%clk 0:03:00.9]} 1... e5 {[%clk 0:03:00.5]} 2. d4 {[%clk 0:02:58]} 2...
exd4 {[%clk 0:03:00.3]} 3. Qxd4 {[%clk 0:02:58.7]} 3... Nc6 {[%clk 0:02:59.8]}
4. Qe3 {[%clk 0:02:58.7]} 4... Nf6 {[%clk 0:02:55]} 5. Nc3 {[%clk 0:02:58.5]}
5... Bb4 {[%clk 0:02:55.2]} 6. Bd2 {[%clk 0:02:58.6]} 6... O-O {[%clk
0:02:55.5]} 7. O-O-O {[%clk 0:02:58.6]} 7... Re8 {[%clk 0:02:56.2]} 8. Qg3
{[%clk 0:02:58.7]} 8... Rxe4 {[%clk 0:02:52.9]} 9. a3 {[%clk 0:02:58.2]} 9...
Bxc3 {[%clk 0:02:44.5]} 10. Bxc3 {[%clk 0:02:57.8]} 10... d6 {[%clk 0:02:45.1]}
11. f3 {[%clk 0:02:24.1]} 11... Re3 {[%clk 0:02:26.8]} 12. Ne2 {[%clk
0:02:16.4]} 12... Qe7 {[%clk 0:02:20.1]} 13. Nf4 {[%clk 0:02:11.3]} 13... Rxc3
{[%clk 0:02:18.4]} 14. bxc3 {[%clk 0:02:09.8]} 14... Ne5 {[%clk 0:02:13.1]} 15.
Qe1 {[%clk 0:01:42.7]} 15... Qf8 {[%clk 0:01:57.9]} 16. Bd3 {[%clk 0:01:34.3]}
16... Bd7 {[%clk 0:01:55.9]} 17. c4 {[%clk 0:01:24.2]} 17... c5 {[%clk 0:01:36]}
18. Qc3 {[%clk 0:01:11.2]} 18... Bc6 {[%clk 0:01:27.4]} 19. Nd5 {[%clk
0:01:06.2]} 19... Bxd5 {[%clk 0:01:24.6]} 20. cxd5 {[%clk 0:01:07.1]} 20... Rb8
{[%clk 0:01:12.3]} 21. f4 {[%clk 0:01:01.4]} 21... Nxd3+ {[%clk 0:01:11.1]} 22.
Qxd3 {[%clk 0:00:57]} 22... b5 {[%clk 0:01:09.4]} 23. Rhe1 {[%clk 0:00:50.6]}
23... a5 {[%clk 0:01:07]} 24. Qe3 {[%clk 0:00:44.9]} 24... Qd8 {[%clk
0:00:37.8]} 25. Qe7 {[%clk 0:00:38]} 25... Qb6 {[%clk 0:00:38.3]} 26. g4 {[%clk
0:00:31.5]} 26... h5 {[%clk 0:00:15.2]} 27. g5 {[%clk 0:00:28.5]} 27... Ng4
{[%clk 0:00:14.4]} 28. h3 {[%clk 0:00:12.8]} 28... Nf2 {[%clk 0:00:10.3]} 29.
Rd2 {[%clk 0:00:11.6]} 29... b4 {[%clk 0:00:08.7]} 30. Rxf2 {[%clk 0:00:08.4]}
30... bxa3 {[%clk 0:00:09.2]} 31. Kd2 {[%clk 0:00:04.3]} 31... Qb4+ {[%clk
0:00:07.8]} 32. Ke2 {[%clk 0:00:04.6]} 32... a2 {[%clk 0:00:06.9]} 33. g6 {[%clk
0:00:03]} 33... fxg6 {[%clk 0:00:04.7]} 34. Qe6+ {[%clk 0:00:03.3]} 34... Kh8
{[%clk 0:00:03.9]} 35. Qxg6 {[%clk 0:00:02.3]} 35... Qxe1+ {[%clk 0:00:03.7]}
36. Kxe1 {[%clk 0:00:02.2]} 36... a1=Q+ {[%clk 0:00:04.6]} 37. Ke2 {[%clk
0:00:03.1]} 37... Qf6 {[%clk 0:00:02.9]} 38. Qxh5+ {[%clk 0:00:02.3]} 38... Kg8
{[%clk 0:00:02.9]} 39. Rg2 {[%clk 0:00:01.9]} 39... a4 {[%clk 0:00:02.1]} 40.
Rg6 {[%clk 0:00:01]} 40... Qf7 {[%clk 0:00:02.5]} 41. Qg5 {[%clk 0:00:01]} 41...
Re8+ {[%clk 0:00:01.2]} 42. Kf2 {[%clk 0:00:01.4]} 42... a3 {[%clk 0:00:02.1]}
43. Re6 {[%clk 0:00:01.6]} 43... Rxe6 {[%clk 0:00:02]} 44. dxe6 {[%clk
0:00:02.5]} 44... Qxe6 {[%clk 0:00:02.9]} 45. Qd8+ {[%clk 0:00:03.1]} 45... Kf7
{[%clk 0:00:02.7]} 46. Qc7+ {[%clk 0:00:03.6]} 46... Qe7 {[%clk 0:00:02.5]} 47.
Qc8 {[%clk 0:00:03.6]} 47... a2 {[%clk 0:00:01.7]} 48. Qf5+ {[%clk 0:00:04.2]}
48... Qf6 {[%clk 0:00:01.9]} 49. Qd5+ {[%clk 0:00:04.7]} 49... Qe6 {[%clk
0:00:02.3]} 50. Qh5+ {[%clk 0:00:05.2]} 50... Kf8 {[%clk 0:00:01.8]} 51. Qh8+
{[%clk 0:00:05]} 51... Qg8 {[%clk 0:00:02.1]} 52. Qh4 {[%clk 0:00:05.1]} 52...
a1=Q {[%clk 0:00:02.3]} 53. Qd8+ {[%clk 0:00:05.7]} 53... Kf7 {[%clk 0:00:02.9]}
54. Qd7+ {[%clk 0:00:06.6]} 54... Kg6 {[%clk 0:00:02.8]} 55. Qxd6+ {[%clk
0:00:07.5]} 55... Qf6 {[%clk 0:00:02]} 56. Qe5 {[%clk 0:00:08.4]} 56... Qxe5
{[%clk 0:00:02.3]} 57. fxe5 {[%clk 0:00:08.9]} 57... Qe6 {[%clk 0:00:03]} 0-1

[Event "Early-Titled-Tuesday-Blitz-May-28-2024"]
[Site "Chess.com"]
[Date "2024.05.28"]
[Round "2"]
[White "Flaccidmoves"]
[Black "IMRosen"]
[Result "1-0"]
[WhiteElo "2481"]
[BlackElo "2756"]
[TimeControl "180+1"]
[EndTime "8:19:47 PDT"]
[Termination "Flaccidmoves won on time"]

1. c4 {[%clk 0:03:00.9]} 1... e6 {[%clk 0:02:56.9]} 2. g3 {[%clk 0:02:59.9]}
2... d5 {[%clk 0:02:56.7]} 3. Bg2 {[%clk 0:03:00.2]} 3... d4 {[%clk 0:02:56.4]}
4. b4 {[%clk 0:02:54.1]} 4... e5 {[%clk 0:02:46.6]} 5. b5 {[%clk 0:02:48.3]}
5... Nf6 {[%clk 0:02:42.3]} 6. d3 {[%clk 0:02:42.4]} 6... h6 {[%clk 0:02:40]} 7.
Nf3 {[%clk 0:02:41.7]} 7... Bd6 {[%clk 0:02:24.5]} 8. c5 {[%clk 0:02:31]} 8...
Bxc5 {[%clk 0:02:24]} 9. Nxe5 {[%clk 0:02:31.4]} 9... O-O {[%clk 0:02:24]} 10.
O-O {[%clk 0:02:31]} 10... Re8 {[%clk 0:02:24.1]} 11. Nc4 {[%clk 0:02:29.1]}
11... a6 {[%clk 0:02:21.1]} 12. bxa6 {[%clk 0:02:24.3]} 12... Rxa6 {[%clk
0:02:22]} 13. Ncd2 {[%clk 0:01:57.8]} 13... c6 {[%clk 0:02:14.3]} 14. Nb3 {[%clk
0:01:57.5]} 14... Ba7 {[%clk 0:02:11.5]} 15. N1d2 {[%clk 0:01:57.7]} 15... Be6
{[%clk 0:02:10.2]} 16. Nf3 {[%clk 0:01:54.6]} 16... c5 {[%clk 0:01:59.6]} 17.
Bd2 {[%clk 0:01:51.3]} 17... b5 {[%clk 0:01:53.9]} 18. Bf4 {[%clk 0:01:41.6]}
18... Nc6 {[%clk 0:01:47.9]} 19. h4 {[%clk 0:01:18.3]} 19... c4 {[%clk
0:01:33.6]} 20. Nbd2 {[%clk 0:01:14.6]} 20... c3 {[%clk 0:01:22.8]} 21. Nb3
{[%clk 0:01:14]} 21... Nd5 {[%clk 0:01:22]} 22. Bc1 {[%clk 0:01:07.1]} 22... Bg4
{[%clk 0:01:12.7]} 23. Re1 {[%clk 0:01:01]} 23... Qd6 {[%clk 0:00:54.3]} 24. a3
{[%clk 0:00:53.4]} 24... Bb6 {[%clk 0:00:51.2]} 25. Qc2 {[%clk 0:00:50.6]} 25...
Qf6 {[%clk 0:00:39.5]} 26. Rb1 {[%clk 0:00:43.8]} 26... Qd6 {[%clk 0:00:30.7]}
27. Nh2 {[%clk 0:00:40.6]} 27... Bh5 {[%clk 0:00:29.7]} 28. Nf3 {[%clk
0:00:39.9]} 28... Raa8 {[%clk 0:00:26.6]} 29. Na1 {[%clk 0:00:29.2]} 29... Nc7
{[%clk 0:00:25.9]} 30. Qb3 {[%clk 0:00:23.3]} 30... Re7 {[%clk 0:00:23.1]} 31.
Nc2 {[%clk 0:00:22.5]} 31... Rae8 {[%clk 0:00:23.8]} 32. e4 {[%clk 0:00:20.3]}
32... dxe3 {[%clk 0:00:15.4]} 33. Bxe3 {[%clk 0:00:19.6]} 33... Bxe3 {[%clk
0:00:15.6]} 34. Nxe3 {[%clk 0:00:20.5]} 34... Qxd3 {[%clk 0:00:14.3]} 35. Rbd1
{[%clk 0:00:20]} 35... Qg6 {[%clk 0:00:07.2]} 36. Qxc3 {[%clk 0:00:19.5]} 36...
Bxf3 {[%clk 0:00:04.3]} 37. Bxf3 {[%clk 0:00:19.6]} 37... Ne5 {[%clk 0:00:05.1]}
38. Bg2 {[%clk 0:00:18.8]} 38... Na6 {[%clk 0:00:03.9]} 39. Nd5 {[%clk 0:00:18]}
39... Re6 {[%clk 0:00:01.7]} 40. Nf4 {[%clk 0:00:14.5]} 40... Qf6 {[%clk
0:00:01.5]} 41. Nxe6 {[%clk 0:00:14.2]} 41... Rxe6 {[%clk 0:00:01]} 42. Qd4
{[%clk 0:00:11]} 42... Kh7 {[%clk 0:00:01]} 43. Qe4+ {[%clk 0:00:10.8]} 43... g6
{[%clk 0:00:01.1]} 44. Qf4 {[%clk 0:00:10.6]} 44... Qg7 {[%clk 0:00:01.2]} 45.
Bd5 {[%clk 0:00:10.3]} 45... Re7 {[%clk 0:00:01]} 46. Ba2 {[%clk 0:00:08.3]}
46... g5 {[%clk 0:00:01.6]} 47. Qf5+ {[%clk 0:00:08.1]} 47... Qg6 {[%clk
0:00:01.5]} 48. Qxg6+ {[%clk 0:00:07.8]} 48... Nxg6 {[%clk 0:00:01.2]} 49. Rxe7
{[%clk 0:00:07.3]} 49... Nxe7 {[%clk 0:00:02.1]} 50. Bxf7 {[%clk 0:00:07.3]}
50... Kg7 {[%clk 0:00:02.6]} 51. Bd5 {[%clk 0:00:06.4]} 51... b4 {[%clk
0:00:02.8]} 52. axb4 {[%clk 0:00:06]} 52... Nxb4 {[%clk 0:00:03.7]} 53. Be4
{[%clk 0:00:05.8]} 53... Kf6 {[%clk 0:00:03.2]} 54. hxg5+ {[%clk 0:00:05.5]}
54... hxg5 {[%clk 0:00:03.5]} 55. Kg2 {[%clk 0:00:06.1]} 55... Na2 {[%clk
0:00:03.8]} 56. Rd3 {[%clk 0:00:05.1]} 56... Nb4 {[%clk 0:00:03.3]} 57. Re3
{[%clk 0:00:04.1]} 57... Na2 {[%clk 0:00:03.2]} 58. g4 {[%clk 0:00:04.4]} 58...
Nc1 {[%clk 0:00:03.2]} 59. Bf5 {[%clk 0:00:04.3]} 59... Nxf5 {[%clk 0:00:02.7]}
60. Rf3 {[%clk 0:00:04.8]} 60... Kg6 {[%clk 0:00:02.1]} 61. Rxf5 {[%clk
0:00:05.7]} 61... Ne2 {[%clk 0:00:01.5]} 62. Ra5 {[%clk 0:00:06.2]} 62... Nf4+
{[%clk 0:00:01.6]} 63. Kf3 {[%clk 0:00:06.8]} 63... Nd3 {[%clk 0:00:01.4]} 64.
Ra6+ {[%clk 0:00:07.2]} 64... Kg7 {[%clk 0:00:01.4]} 65. Ke3 {[%clk 0:00:07.6]}
65... Nb4 {[%clk 0:00:01]} 66. Rd6 {[%clk 0:00:07]} 1-0

[Event "Early-Titled-Tuesday-Blitz-May-28-2024"]
[Site "Chess.com"]
[Date "2024.05.28"]
[Round "2"]
[White "Engima32"]
[Black "SoyuzTM4"]
[Result "1-0"]
[WhiteElo "2493"]
[BlackElo "2216"]
[TimeControl "180+1"]
[EndTime "8:19:47 PDT"]
[Termination "Engima32 won on time"]

1. Nf3 {[%clk 0:03:00.3]} 1... Nf6 {[%clk 0:02:59]} 2. g3 {[%clk 0:03:00.2]}
2... d5 {[%clk 0:02:56.5]} 3. Bg2 {[%clk 0:02:59.5]} 3... Bg4 {[%clk 0:02:54.7]}
4. O-O {[%clk 0:02:59.1]} 4... e6 {[%clk 0:02:52.1]} 5. d4 {[%clk 0:02:58.9]}
5... Nbd7 {[%clk 0:02:48.4]} 6. c4 {[%clk 0:02:57.5]} 6... c6 {[%clk 0:02:47.8]}
7. Nc3 {[%clk 0:02:57.7]} 7... Be7 {[%clk 0:02:42.5]} 8. Qb3 {[%clk 0:02:57.3]}
8... Qb6 {[%clk 0:02:41.7]} 9. c5 {[%clk 0:02:57.2]} 9... Qxb3 {[%clk
0:02:35.9]} 10. axb3 {[%clk 0:02:57.4]} 10... O-O {[%clk 0:02:33.9]} 11. b4
{[%clk 0:02:56.7]} 11... Ne4 {[%clk 0:02:06.9]} 12. h3 {[%clk 0:02:50.1]} 12...
Bh5 {[%clk 0:02:05.8]} 13. g4 {[%clk 0:02:50.4]} 13... Bg6 {[%clk 0:02:05.7]}
14. Nd2 {[%clk 0:02:50.5]} 14... f5 {[%clk 0:02:02.4]} 15. Ndxe4 {[%clk
0:01:57.2]} 15... dxe4 {[%clk 0:01:47.1]} 16. f3 {[%clk 0:01:46.7]} 16... Bf6
{[%clk 0:01:40.2]} 17. e3 {[%clk 0:01:34.2]} 17... exf3 {[%clk 0:01:31.4]} 18.
Bxf3 {[%clk 0:01:33.7]} 18... e5 {[%clk 0:01:31.1]} 19. d5 {[%clk 0:01:20.4]}
19... e4 {[%clk 0:01:30.2]} 20. Be2 {[%clk 0:01:20.7]} 20... Bxc3 {[%clk
0:01:27]} 21. bxc3 {[%clk 0:01:21.6]} 21... cxd5 {[%clk 0:01:26.8]} 22. Rd1
{[%clk 0:01:20.7]} 22... fxg4 {[%clk 0:01:17.1]} 23. hxg4 {[%clk 0:01:14.2]}
23... Ne5 {[%clk 0:00:58.8]} 24. Rxd5 {[%clk 0:01:08.3]} 24... Nf3+ {[%clk
0:00:58.3]} 25. Kg2 {[%clk 0:01:04.5]} 25... a6 {[%clk 0:00:42.8]} 26. c4 {[%clk
0:00:56]} 26... Ne1+ {[%clk 0:00:31.9]} 27. Kg3 {[%clk 0:00:54.1]} 27... Nd3
{[%clk 0:00:27.8]} 28. Rb1 {[%clk 0:00:45.5]} 28... Rad8 {[%clk 0:00:22.8]} 29.
Bd2 {[%clk 0:00:31.9]} 29... Bf7 {[%clk 0:00:21.3]} 30. Bxd3 {[%clk 0:00:26.1]}
30... Bxd5 {[%clk 0:00:20.1]} 31. cxd5 {[%clk 0:00:27]} 31... exd3 {[%clk
0:00:19.8]} 32. e4 {[%clk 0:00:26.1]} 32... Rfe8 {[%clk 0:00:18.4]} 33. Re1
{[%clk 0:00:24.8]} 33... Kf7 {[%clk 0:00:17.1]} 34. Re3 {[%clk 0:00:20.3]} 34...
Kg6 {[%clk 0:00:15.8]} 35. Kf4 {[%clk 0:00:19.9]} 35... Rf8+ {[%clk 0:00:15.4]}
36. Ke5 {[%clk 0:00:20.3]} 36... Rfe8+ {[%clk 0:00:15.2]} 37. Kd4 {[%clk
0:00:20.6]} 37... Kg5 {[%clk 0:00:14.9]} 38. Rh3+ {[%clk 0:00:19.8]} 38... Kxg4
{[%clk 0:00:13.8]} 39. Rxh7 {[%clk 0:00:20.4]} 39... Kf3 {[%clk 0:00:13.7]} 40.
e5 {[%clk 0:00:20.9]} 40... Ke2 {[%clk 0:00:11.7]} 41. Rh2+ {[%clk 0:00:20.6]}
41... Kd1 {[%clk 0:00:11.4]} 42. e6 {[%clk 0:00:19.1]} 42... Rxe6 {[%clk
0:00:11.1]} 43. Bg5 {[%clk 0:00:17.1]} 43... Re2 {[%clk 0:00:10.7]} 44. Rh1+
{[%clk 0:00:15.7]} 44... Re1 {[%clk 0:00:10]} 45. Rh3 {[%clk 0:00:15]} 45...
Rde8 {[%clk 0:00:09]} 46. Rxd3+ {[%clk 0:00:14.9]} 46... Ke2 {[%clk 0:00:08.9]}
47. d6 {[%clk 0:00:13.5]} 47... Kf1 {[%clk 0:00:06.9]} 48. Bd2 {[%clk
0:00:10.9]} 48... R1e4+ {[%clk 0:00:06.1]} 49. Kc3 {[%clk 0:00:10.8]} 49... Rd8
{[%clk 0:00:06]} 50. Bg5 {[%clk 0:00:10.4]} 50... Rd7 {[%clk 0:00:05.6]} 51. Be7
{[%clk 0:00:10.8]} 51... Ke2 {[%clk 0:00:04.9]} 52. Rd4 {[%clk 0:00:10.9]} 52...
Re3+ {[%clk 0:00:03.5]} 53. Kc4 {[%clk 0:00:10.3]} 53... Kf3 {[%clk 0:00:01.2]}
54. Kd5 {[%clk 0:00:09.3]} 1-0

[Event "Early-Titled-Tuesday-Blitz-May-28-2024"]
[Site "Chess.com"]
[Date "2024.05.28"]
[Round "2"]
[White "DumbKing75"]
[Black "AryanTari"]
[Result "1-0"]
[WhiteElo "2655"]
[BlackElo "3046"]
[TimeControl "180+1"]
[EndTime "8:19:50 PDT"]
[Termination "DumbKing75 won by checkmate"]

1. e4 {[%clk 0:03:00.9]} 1... e5 {[%clk 0:02:59.7]} 2. Nf3 {[%clk 0:03:00.9]}
2... Nc6 {[%clk 0:03:00.2]} 3. Bb5 {[%clk 0:02:54.5]} 3... Nge7 {[%clk
0:02:59.5]} 4. Nc3 {[%clk 0:02:42.6]} 4... Ng6 {[%clk 0:02:58.4]} 5. d4 {[%clk
0:02:39.7]} 5... exd4 {[%clk 0:02:59.3]} 6. Nxd4 {[%clk 0:02:40]} 6... Nxd4
{[%clk 0:03:00.1]} 7. Qxd4 {[%clk 0:02:40.9]} 7... c6 {[%clk 0:03:00.8]} 8. Bc4
{[%clk 0:02:37.7]} 8... b5 {[%clk 0:02:59.7]} 9. Bb3 {[%clk 0:02:35.3]} 9... Qb6
{[%clk 0:02:42.5]} 10. Qxb6 {[%clk 0:02:16.9]} 10... axb6 {[%clk 0:02:43.4]} 11.
O-O {[%clk 0:02:17.4]} 11... b4 {[%clk 0:02:41.5]} 12. Ne2 {[%clk 0:02:04.4]}
12... Ba6 {[%clk 0:02:20.9]} 13. Re1 {[%clk 0:02:02.5]} 13... Bc5 {[%clk
0:02:21.5]} 14. Ng3 {[%clk 0:01:57.8]} 14... O-O {[%clk 0:02:13.7]} 15. Bd2
{[%clk 0:01:52]} 15... Ne5 {[%clk 0:02:10.6]} 16. Rad1 {[%clk 0:01:29.1]} 16...
Ng4 {[%clk 0:02:08.6]} 17. Nh1 {[%clk 0:01:29.7]} 17... Rae8 {[%clk 0:02:07.5]}
18. Bf4 {[%clk 0:01:18.5]} 18... Re7 {[%clk 0:01:47.3]} 19. h3 {[%clk 0:01:07]}
19... Ne5 {[%clk 0:01:31.1]} 20. Bxe5 {[%clk 0:01:04.7]} 20... Rxe5 {[%clk
0:01:32]} 21. Rxd7 {[%clk 0:01:05.4]} 21... g6 {[%clk 0:01:32.3]} 22. Ng3 {[%clk
0:01:03.3]} 22... Kg7 {[%clk 0:01:32]} 23. Red1 {[%clk 0:00:59.3]} 23... h5
{[%clk 0:01:30.5]} 24. Ra7 {[%clk 0:00:58.3]} 24... h4 {[%clk 0:01:25.8]} 25.
Nf1 {[%clk 0:00:53.5]} 25... Bc8 {[%clk 0:01:00.2]} 26. Nd2 {[%clk 0:00:43.8]}
26... Rd8 {[%clk 0:01:00.4]} 27. Rxf7+ {[%clk 0:00:40.7]} 27... Kh6 {[%clk
0:01:01]} 28. c3 {[%clk 0:00:34.3]} 28... bxc3 {[%clk 0:01:00.4]} 29. bxc3
{[%clk 0:00:35.2]} 29... Rd3 {[%clk 0:00:53.6]} 30. Rf3 {[%clk 0:00:31.7]} 30...
Rd8 {[%clk 0:00:49.8]} 31. Bc2 {[%clk 0:00:20.5]} 31... Be7 {[%clk 0:00:27.5]}
32. Rd3 {[%clk 0:00:20]} 32... Rf8 {[%clk 0:00:26.9]} 33. Re3 {[%clk 0:00:14.5]}
33... Bc5 {[%clk 0:00:26.5]} 34. Re2 {[%clk 0:00:14.3]} 34... Ba6 {[%clk
0:00:27.1]} 35. c4 {[%clk 0:00:14]} 35... Re7 {[%clk 0:00:25.3]} 36. Bb3 {[%clk
0:00:13.2]} 36... b5 {[%clk 0:00:23.1]} 37. cxb5 {[%clk 0:00:12]} 37... Bxb5
{[%clk 0:00:24]} 38. Bc4 {[%clk 0:00:12]} 38... Ba4 {[%clk 0:00:17.6]} 39. Bb3
{[%clk 0:00:10.5]} 39... Bb5 {[%clk 0:00:18]} 40. Bc4 {[%clk 0:00:11.1]} 40...
Ref7 {[%clk 0:00:14.7]} 41. Bxb5 {[%clk 0:00:07.7]} 41... Rxf2 {[%clk
0:00:10.9]} 42. Rxf2 {[%clk 0:00:06.6]} 42... Rxf2 {[%clk 0:00:11.8]} 43. Kh1
{[%clk 0:00:03.4]} 43... cxb5 {[%clk 0:00:12.4]} 44. Nb3 {[%clk 0:00:03.8]}
44... Be3 {[%clk 0:00:12.2]} 45. Re1 {[%clk 0:00:02.8]} 45... Bb6 {[%clk
0:00:12.3]} 46. e5 {[%clk 0:00:03.1]} 46... Kg7 {[%clk 0:00:11.3]} 47. e6 {[%clk
0:00:03.4]} 47... Kf8 {[%clk 0:00:12]} 48. Nc1 {[%clk 0:00:02]} 48... Rxa2
{[%clk 0:00:10.6]} 49. Nxa2 {[%clk 0:00:01.3]} 49... Ke7 {[%clk 0:00:10.4]} 50.
Re2 {[%clk 0:00:01.7]} 50... Ba5 {[%clk 0:00:11.3]} 51. Nc1 {[%clk 0:00:02.3]}
51... Bb6 {[%clk 0:00:12.2]} 52. Nb3 {[%clk 0:00:02.6]} 52... b4 {[%clk
0:00:13.1]} 53. g3 {[%clk 0:00:02.9]} 53... Bc7 {[%clk 0:00:13.8]} 54. Kg2
{[%clk 0:00:03.8]} 54... Bd6 {[%clk 0:00:14.7]} 55. gxh4 {[%clk 0:00:03.9]}
55... g5 {[%clk 0:00:15.4]} 56. Kf3 {[%clk 0:00:04.5]} 56... g4+ {[%clk
0:00:16.3]} 57. Kxg4 {[%clk 0:00:05.1]} 57... Bc5 {[%clk 0:00:17.2]} 58. Kf5
{[%clk 0:00:05.3]} 58... Bd6 {[%clk 0:00:18.1]} 59. Nd4 {[%clk 0:00:05.6]} 59...
Bc5 {[%clk 0:00:18.5]} 60. Nc6+ {[%clk 0:00:06.1]} 60... Kd6 {[%clk 0:00:19.4]}
61. e7 {[%clk 0:00:06.8]} 61... Kxc6 {[%clk 0:00:20.3]} 62. e8=Q+ {[%clk
0:00:07.5]} 62... Kd5 {[%clk 0:00:21]} 63. Qe6+ {[%clk 0:00:07.9]} 63... Kd4
{[%clk 0:00:21.3]} 64. Qe4+ {[%clk 0:00:08.6]} 64... Kc3 {[%clk 0:00:21.3]} 65.
Rc2+ {[%clk 0:00:09.5]} 65... Kb3 {[%clk 0:00:22.2]} 66. Qc4+ {[%clk 0:00:10.4]}
66... Ka4 {[%clk 0:00:23.1]} 67. Ra2# {[%clk 0:00:10.9]} 1-0

[Event "Early-Titled-Tuesday-Blitz-May-28-2024"]
[Site "Chess.com"]
[Date "2024.05.28"]
[Round "2"]
[White "JoliyRoger"]
[Black "Dolphin_2010"]
[Result "0-1"]
[WhiteElo "2444"]
[BlackElo "2744"]
[TimeControl "180+1"]
[EndTime "8:19:51 PDT"]
[Termination "Dolphin_2010 won by resignation"]

1. d4 {[%clk 0:03:00.9]} 1... d5 {[%clk 0:03:00]} 2. c4 {[%clk 0:03:00.8]} 2...
c6 {[%clk 0:03:00.3]} 3. Nc3 {[%clk 0:02:58.6]} 3... Nf6 {[%clk 0:02:59.7]} 4.
cxd5 {[%clk 0:02:57.7]} 4... cxd5 {[%clk 0:03:00]} 5. Bf4 {[%clk 0:02:57.9]}
5... Nc6 {[%clk 0:03:00.2]} 6. e3 {[%clk 0:02:56.6]} 6... a6 {[%clk 0:03:00.3]}
7. Bd3 {[%clk 0:02:56.6]} 7... Bg4 {[%clk 0:03:00.8]} 8. f3 {[%clk 0:02:57]}
8... Bh5 {[%clk 0:02:52]} 9. Nge2 {[%clk 0:02:57.9]} 9... Bg6 {[%clk 0:02:52]}
10. O-O {[%clk 0:02:58.6]} 10... e6 {[%clk 0:02:51.3]} 11. Rc1 {[%clk
0:02:57.5]} 11... Be7 {[%clk 0:02:51.4]} 12. Na4 {[%clk 0:02:57.3]} 12... Nd7
{[%clk 0:02:49]} 13. Qd2 {[%clk 0:02:29.7]} 13... O-O {[%clk 0:02:44.1]} 14.
Bxg6 {[%clk 0:02:28.4]} 14... hxg6 {[%clk 0:02:45]} 15. h3 {[%clk 0:02:00.2]}
15... Rc8 {[%clk 0:02:39.6]} 16. Kh2 {[%clk 0:01:43.7]} 16... b5 {[%clk
0:02:32.4]} 17. Nac3 {[%clk 0:01:43.3]} 17... Nb6 {[%clk 0:02:25.8]} 18. b3
{[%clk 0:01:43.6]} 18... Ba3 {[%clk 0:02:25.4]} 19. Rb1 {[%clk 0:01:36.4]} 19...
Qe7 {[%clk 0:02:14.1]} 20. Rbd1 {[%clk 0:01:35.2]} 20... Bb4 {[%clk 0:01:47.1]}
21. Qb2 {[%clk 0:01:34.9]} 21... Na5 {[%clk 0:01:39.4]} 22. Nb1 {[%clk
0:01:33.5]} 22... Nb7 {[%clk 0:01:33.2]} 23. Nc1 {[%clk 0:01:32.5]} 23... Bd6
{[%clk 0:01:22.5]} 24. Bxd6 {[%clk 0:01:28]} 24... Nxd6 {[%clk 0:01:23]} 25. Nd3
{[%clk 0:01:26.7]} 25... Nf5 {[%clk 0:01:23.6]} 26. Qd2 {[%clk 0:01:17.5]} 26...
Qc7+ {[%clk 0:01:18.2]} 27. Kg1 {[%clk 0:01:17.3]} 27... Qc2 {[%clk 0:01:18.1]}
28. Rfe1 {[%clk 0:01:17.7]} 28... Qxd2 {[%clk 0:01:14.7]} 29. Rxd2 {[%clk
0:01:17.7]} 29... Nd7 {[%clk 0:01:15.6]} 30. Kf2 {[%clk 0:01:08]} 30... Rc7
{[%clk 0:01:08.6]} 31. Na3 {[%clk 0:01:02.8]} 31... Rfc8 {[%clk 0:01:08.2]} 32.
Ree2 {[%clk 0:01:03]} 32... Rc3 {[%clk 0:01:02.2]} 33. Rc2 {[%clk 0:01:01.1]}
33... Nd6 {[%clk 0:00:57.2]} 34. Nc5 {[%clk 0:00:56.2]} 34... Nxc5 {[%clk
0:00:57]} 35. Rxc3 {[%clk 0:00:52]} 35... Nce4+ {[%clk 0:00:56.8]} 36. fxe4
{[%clk 0:00:52.4]} 36... Nxe4+ {[%clk 0:00:56.7]} 37. Kf3 {[%clk 0:00:51.1]}
37... Rxc3 {[%clk 0:00:55]} 38. Nc2 {[%clk 0:00:49.6]} 38... a5 {[%clk
0:00:52.2]} 39. Ne1 {[%clk 0:00:46.8]} 39... a4 {[%clk 0:00:48.2]} 40. bxa4
{[%clk 0:00:41.9]} 40... bxa4 {[%clk 0:00:49.1]} 41. Rb2 {[%clk 0:00:29.6]}
41... f5 {[%clk 0:00:44.8]} 42. Ke2 {[%clk 0:00:26.5]} 42... Ra3 {[%clk
0:00:31.6]} 43. Nc2 {[%clk 0:00:25.7]} 43... Rxa2 {[%clk 0:00:25.1]} 44. Rxa2
{[%clk 0:00:25]} 44... Nc3+ {[%clk 0:00:25.2]} 45. Kd2 {[%clk 0:00:20.8]} 45...
Nxa2 {[%clk 0:00:26.1]} 46. Na3 {[%clk 0:00:19.2]} 46... Kf7 {[%clk 0:00:20.9]}
47. Nb5 {[%clk 0:00:08.9]} 47... Ke7 {[%clk 0:00:18.2]} 48. Kc2 {[%clk
0:00:07.4]} 48... Kd7 {[%clk 0:00:18.4]} 49. Kb2 {[%clk 0:00:07.1]} 49... Nb4
{[%clk 0:00:15]} 50. Nc3 {[%clk 0:00:07.8]} 50... a3+ {[%clk 0:00:13.5]} 51. Kb3
{[%clk 0:00:06.8]} 51... a2 {[%clk 0:00:14.1]} 52. Kb2 {[%clk 0:00:07.2]} 52...
Nc2 {[%clk 0:00:08]} 53. Nd1 {[%clk 0:00:06.3]} 53... a1=Q+ {[%clk 0:00:08]} 54.
Kxc2 {[%clk 0:00:06.1]} 54... e5 {[%clk 0:00:08.6]} 55. Nb2 {[%clk 0:00:05.1]}
55... e4 {[%clk 0:00:07.3]} 56. Nd1 {[%clk 0:00:04]} 56... Qa2+ {[%clk 0:00:06]}
57. Nb2 {[%clk 0:00:04.5]} 57... Kc6 {[%clk 0:00:06.5]} 58. Kc3 {[%clk 0:00:05]}
58... Kb5 {[%clk 0:00:07.1]} 59. Kc2 {[%clk 0:00:05.5]} 59... Kb4 {[%clk
0:00:07.1]} 60. Kd2 {[%clk 0:00:05.8]} 60... Qxb2+ {[%clk 0:00:07.3]} 0-1